{"text_format":"1","workbook":"xlsx","n_sheets":6,"sheets":["Services-Produits","Reference","Patients","Ken Anjani","Henny","Test 2 pages"],"not_rendered":{"charts":0,"images":4,"macros":1,"external_links":1,"defined_names":1,"comments":0,"pivot_tables":0},"unopened":[],"bounds":{"document_bytes":16777216,"sheet_cells":100000,"rows_first":2000,"rows_last":500,"rows_between":2000,"halvings":0,"cell_chars":16384,"cell_head_chars":4096},"cells_cut":0,"cells_raw":0,"read":"whole","date_system":"1900"}

{"sheet":"Services-Produits","index":0,"n_rows":160,"n_cols":11,"rows_kept":160,"cut":false,"hidden":false,"merged":[]}
["Produit","Price","BuyPrice23","profit23","Rabatt(%)","BuyPrice nach Rabatt","MwsT(%)","profit23%","Price24","BuyPrice24"]
["15% discount for Gut Microbiome Therapy",1036.8800000000001,null,{"$f":"B2-C2","v":1036.8800000000001}]
["Abbott Freestyle Libre 2",91.4,91.4,{"$f":"IF(C3=\"\",\"\",IFERROR(B3-C3,\"\"))","v":0},3,null,7.7]
["Abbott Freestyle libre 2 sensor 14 days",65.3,65.3,{"$f":"IF(C4=\"\",\"\",IFERROR(B4-C4,\"\"))","v":0},3,null,7.7]
["Abbott Sensor",65.3,null,""]
["Artesunat",67.2,null,""]
["Bactoflor",47.8,null,""]
["Bactoflor Kinder",35.74,null,""]
["Bactoflor-2023",69.8,null,""]
["Biomo Lipon 600",35.700000000000003,null,""]
["Biotin",37.25,null,""]
["Biotin + NaCl",37.25,null,""]
["B-Kompleks",46.8,null,""]
["Black cumin capsules",34.799999999999997,null,""]
["Body Lotion",null,null,""]
["Bosvene Akba",215.11,null,""]
["Cholin Inject",43,null,""]
["C-Intercell 650 mg Vitamin C, 90 Kapseln",27.99,null,""]
["Cleanser",17.899999999999999,null,""]
["Curcumin + NaCl 0,9%",116.22,null,""]
["Curcumin 150 mg",229.2,null,""]
["curcumin 75 mg",116.22,46.22,70]
["E-Inject",41.2,null,""]
["Epinativ Injection",133.61000000000001,null,""]
["Face cream",44.9,null,""]
["Face treatment Chin contouring",600,null,""]
["Fermanose",46.2,null,""]
["Fiber-Intercell",40.49,null,""]
["Gut Microbiome Therapy",7199.75,null,""]
["Gut Microbiome Therapy",7199.75,null,""]
["Gynophilus 14 Stk.",19.8,19.100000000000001,0.69999999999999929,10,null,7.7]
["Hair tonic",24.95,null,""]
["Hepar",43.7,null,""]
["Hydroxiprolin",68.900000000000006,null,""]
["Hypericin",198.7,null,""]
["Immune infusion",84,null,""]
["Immunocare",220,null,""]
["Immunocare, personalised",195.7,null,""]
["Infraorbital",600,null,""]
["Infusion & Injections:",null,null,""]
["Infusion:",null,null,""]
["Infusion: Curcumin 75 mg",116.22,null,""]
["Infusion: Nicotiamide",179.8,null,""]
["Infusion: Shoga Öl",670,null,""]
["Injection:",null,null,""]
["Jantung (Herz)",584.5,null,""]
["Jardiance Met 5/850 mg, 90 stk.",662.8,null,"",10,null,2.5]
["K2 & D3",34.700000000000003,null,""]
["Kantong kemih (Harnblase)",381.35,null,""]
["Laetia Kaps 80 mg, 56 stk.",45.3,45.9,-0.60000000000000142,10,null,2.5]
["Liserotota",345.3,null,""]
["Liv 52, 100 Stk.",14.9,29.8,-14.9,10,null,2.5]
["Magentropfen",23,null,""]
["Magnesium",25.45,null,""]
["Magnesium 1000 mg",34.68,null,""]
["Magnesium Intercell",15.1,null,""]
["Memoserin 90 Kapseln",67.7,null,""]
["Microbiome",74.95,null,""]
["Microbiome body lotion",29.9,null,""]
["Microcare",null,null,""]
["Microcare 4 months",571.04999999999995,null,""]
["Microcare personalised",null,null,""]
["Microcare personalised Budi Gunawan 3 months",1207.3499999999999,null,""]
["Microcare personalised Sudaeti Susilowati Rahayu 3 months",1004.97,null,""]
["Microniome face serum",69.900000000000006,null,""]
["Muskulatur (Otot)",286.39999999999998,null,""]
["NAD+",219.66,null,""]
["Neuro Amino",163.19999999999999,null,{"$f":"IF(C68=\"\",\"\",IFERROR(B68-C68,\"\"))","v":""}]
["Nicotinamide",179.8,null,""]
["NMN, Rapamune, Sildenafil & Tadalafil",67.8,null,""]
["Oliphenolia",183.51,null,""]
["Oliphenolia + NaCl 0,9% 150 ml",183.51,null,""]
["Omega 7",82.6,null,""]
["Omega 7.0",81.349999999999994,null,""]
["Oregano oil",32.85,null,""]
["Otak kecil (Kleinhirn)",288,null,""]
["Ozempic Dualdose 2 mg/1.5 ml, 25 Stk.",129.80000000000001,129.80000000000001,0,10,null,2.5]
["Phenylalanine",106.4,null,""]
["Phospolipide",31.28,null,""]
["Prodigest",72.349999999999994,null,""]
["Protokoll Lösung",147.19999999999999,null,""]
["Q10 i.v. sensitive",178.8,37.82,140.98000000000002]
["Repatha Inj 140MG/ML, 2 Stk.",233.55,450.25,-216.7,5,null,2.5]
["Reservatrol + NaCl 0,9% 300 ml",178,null,""]
["Resveratrol",178,null,""]
["Riboflavin",127.4,null,""]
["RNA",516.70000000000005,null,""]
["RNA Heart",516.70000000000005,null,""]
["RNA Injections 4 vials",516.70000000000005,null,""]
["RNA Kidney",438.15,null,""]
["RNA Liver",629.45000000000005,null,""]
["RNA Thymus",516.70000000000005,null,""]
["Salvans",13.05,null,""]
["Selenium",41.6,null,""]
["Senolytics mixture",670,null,""]
["Senolytics Mixture",670,null,""]
["Spermidin 20 mg",182.35,82.35,100]
["Subtotal in CHF:",null,null,""]
["Supplement & Medication:",null,null,""]
["Tadalafil-Mepha 10 mg",115,null,""]
["Tadalafil-Mepha 2.5 mg, 28 Stk.",115,115,0,10,null,2.5]
["Tadalafil-Mepha 5 mg, 28 Stk.",115,115,0,10,null,2.5]
["Tamsulosin Mepha Ret, 0,4 mg 100",59.9,59.85,4.9999999999997158E-2,10,null,2.5]
["Testicle ",372.45,null,""]
["Thymus",516.70000000000005,null,""]
["Ventrisana",19.2,null,""]
["Vistabel 3 zones",750,null,""]
["Vit B12 Inj 1000MCG 10AM",8.1,17.8,-9.7000000000000011,10,null,2.5]
["Vit C",27.99,null,""]
["Vit D3",37,null,""]
["Vit D3",29.8,null,""]
["Vit E Inject I.M.",null,null,""]
["Vit, B Komplex",46.8,null,""]
["Vit. C, Zn",21.4,null,""]
["Vit. E IM",null,null,""]
["Vit-C Intercell",27.99,null,""]
["Xanax",42.7,null,""]
["Xarelto",42.15,null,""]
["Zentra inject",60,null,""]
["Epogam 1000, 1000 mg",null,141.35,-141.35,10,null,2.5]
["Femannose 60 Btl 4G",null,87.8,-87.8,10,null,2.5]
["Phytopharma Kaps, 500 mg",null,34.799999999999997,-34.799999999999997,10,null,2.5]
["Sandorn Argousier Omega 7 Kaps, 180 Stk,",null,81.349999999999994,-81.349999999999994,10,null,2.5]
["Vit D3 4000 IE/ml ",null,16.149999999999999,-16.149999999999999,10,null,2.5]
["Vividrin Ectoin 10 ml",null,24.5,-24.5,10,null,7.7]
["Estradot MatrixPFL 37.5 MCG/24h 24 Stk.",null,38.549999999999997,-38.549999999999997,10,null,2.5,null,null,null,36.4]
["Tadalafil Mepha 5 mg, 84 Stk. ",null,273,-273,10,null,2.5]
["Xanax Ret Tabl 1 mg, 30 Stk.",null,14.8,-14.8,10,null,2.5]
["Xanax Ret Tabl 2 mg, 30 Stk.",null,25.5,-25.5,10,null,2.5]
["Xanax Tabl 1 mg, 30 Stk.",null,8.75,-8.75,10,null,2.5]
["Xanax Tabl 2 mg, 100 Stk.",null,42.7,-42.7,10,null,2.5]
["Ozempic Dualdose 2 mg/1.5 ml, 10 Stk.",null,129.80000000000001,{"$f":"IF(C132=\"\",\"\",IFERROR(B132-C132,\"\"))","v":-129.80000000000001},10,null,2.5]
["Clopidogrel Mepha Lactab 75 mg, 84 Stk.",null,86.6,-86.6,0,null,2.5]
["Aminosäureinfusion",null,286.44,-286.44]
["Otrivin 0.1% 10 M",null,12.7,-12.7,10,null,2.5]
["German Insulin Medikament Kühlbox No 22",null,45,-45,10,null,7.7]
["Lubex Hautwaschemulsion PH 5.5 DISP 500",null,29.95,-29.95,10,null,2.5]
["PM505490 Magendarm tropfen 100 ml",null,36,-36,10,null,7.7]
["Novagin Tropfen 0.5 g/ml FI 10 ml",null,9.8000000000000007,-9.8000000000000007,0,null,2.5]
["Xanax Tabl 1 MG, 100 Stk.",null,25.1,-25.1,10,null,2.5]
["Linola creme Halbfett TB, 100 ml",null,16.5,-16.5,10,null,7.7]
["Vagi-Hex VAG Tabl. 10 mg, 12 Stk.",null,17.75,-17.75,10,null,2.5]
["Zovirax LIP Fieberblasencreme TB 2 G",null,20.350000000000001,-20.350000000000001,10,null,2.5]
["Burgerstein Mood Kaps, 60 Stk.",null,40.5,-40.5,10,null,2.5]
["Utrogestran Kaps 100 mg, 90 Stk.",null,36.15,-36.15,10,null,2.5]
["Xanax Ret Tabl 1 mg, 100 Stk.",null,34.549999999999997,-34.549999999999997,10,null,2.5]
["Xanax Tabl 2 mg DS, 100 Stk.",null,42.7,-42.7,10,null,2.5]
["Aldara creme 5% BTL, 12 Stk.",null,91.8,-91.8,10,null,2.5]
["Blissel VAG Gel 0.05 MG/G mit 1 Applikat",null,41,-41,10,null,2.5]
["Dafalgan FilmTabl 1 g, 100 Stk.",null,27.5,-27.5,null,null,2.5]
["Dafalgan FilmTabl 1 g, 40 Stk.",null,15.35,-15.35,10,null,2.5]
["Novofine Injektionsnadeln 31G 6mm, 100 Stk.",null,32.549999999999997,-32.549999999999997,10,null,7.7]
["Stilnox CR Ret Tabl. 6.25 mg, 14 Stk.",null,6.3,-6.3,10,null,2.5]
["Bulboid Supp ERW, 10 Stk.",null,9.4499999999999993,-9.4499999999999993,10,null,2.5]
["Carbolevure Kaps erw, 20 Stk.",null,16.8,-16.8,10,null,2.5]
["Estradot MatrixPFL 25 MCG/24h 24 Stk.",null,38.549999999999997,-38.549999999999997,10,null,2.5]
["Magen-Darm Tropfen 50 ml",null,23,-23,10,null,2.5]
["Tangle Teezer Thick & Curly Haarbürste S",null,19.899999999999999,-19.899999999999999,10,null,7.7]
["Tangle Teezer Toupier Stylingbürste SCH",null,19.899999999999999,-19.899999999999999,10,null,7.7]
["Tetralysal Kaps 300 mg, 28 Stk.",null,25.85,-25.85,10,null,2.5]

{"sheet":"Reference","index":1,"n_rows":40,"n_cols":4,"rows_kept":40,"cut":false,"hidden":false,"merged":[]}
[]
[]
["Invoice: 55H-92401011"]
["                  15.02.2024"]
[]
[]
[]
[]
[]
[]
[]
[]
[]
["Description","Qty","Price","Amount"]
[]
[]
["curcumin 75 mg",3,{"$f":"IFERROR(VLOOKUP(A17,'Services-Produits'!A1:B116,2,FALSE),\"\")","v":116.22},{"$f":"IFERROR(B17*C17,\"\")","v":348.65999999999997}]
[null,null,{"$f":"IFERROR(VLOOKUP(A18,'Services-Produits'!A2:B117,2,FALSE),\"\")","v":""},{"$f":"IFERROR(B18*C18,\"\")","v":""}]
[null,null,{"$f":"IFERROR(VLOOKUP(A19,'Services-Produits'!A3:B118,2,FALSE),\"\")","v":""},""]
[null,null,{"$f":"IFERROR(VLOOKUP(A20,'Services-Produits'!A4:B119,2,FALSE),\"\")","v":""},""]
[null,null,{"$f":"IFERROR(VLOOKUP(A21,'Services-Produits'!A4:B120,2,FALSE),\"\")","v":""},""]
[null,null,{"$f":"IFERROR(VLOOKUP(A22,'Services-Produits'!A5:B121,2,FALSE),\"\")","v":""},""]
[null,null,{"$f":"IFERROR(VLOOKUP(A23,'Services-Produits'!A6:B122,2,FALSE),\"\")","v":""},""]
[null,null,{"$f":"IFERROR(VLOOKUP(A24,'Services-Produits'!A7:B123,2,FALSE),\"\")","v":""},""]
[null,null,{"$f":"IFERROR(VLOOKUP(A25,'Services-Produits'!A8:B124,2,FALSE),\"\")","v":""},""]
[null,null,{"$f":"IFERROR(VLOOKUP(A26,'Services-Produits'!A9:B125,2,FALSE),\"\")","v":""},""]
[null,null,{"$f":"IFERROR(VLOOKUP(A27,'Services-Produits'!A10:B126,2,FALSE),\"\")","v":""},""]
[null,null,{"$f":"IFERROR(VLOOKUP(A28,'Services-Produits'!A11:B127,2,FALSE),\"\")","v":""},""]
[null,null,{"$f":"IFERROR(VLOOKUP(A29,'Services-Produits'!A12:B128,2,FALSE),\"\")","v":""},""]
[null,null,{"$f":"IFERROR(VLOOKUP(A30,'Services-Produits'!A13:B129,2,FALSE),\"\")","v":""},""]
[null,null,{"$f":"IFERROR(VLOOKUP(A31,'Services-Produits'!A14:B130,2,FALSE),\"\")","v":""},""]
[null,null,{"$f":"IFERROR(VLOOKUP(A32,'Services-Produits'!A15:B131,2,FALSE),\"\")","v":""},""]
[null,null,{"$f":"IFERROR(VLOOKUP(A33,'Services-Produits'!A16:B132,2,FALSE),\"\")","v":""},""]
[null,null,{"$f":"IFERROR(VLOOKUP(A34,'Services-Produits'!A17:B133,2,FALSE),\"\")","v":""},""]
[null,null,{"$f":"IFERROR(VLOOKUP(A35,'Services-Produits'!A18:B134,2,FALSE),\"\")","v":""},""]
[null,null,{"$f":"IFERROR(VLOOKUP(A36,'Services-Produits'!A19:B135,2,FALSE),\"\")","v":""},""]
[null,null,{"$f":"IFERROR(VLOOKUP(A37,'Services-Produits'!A20:B136,2,FALSE),\"\")","v":""}]
["Total in CHF",null,null,{"$f":"SUM(D17:D37)","v":348.65999999999997}]
[]
["Thank you very much for your trust!"]

{"sheet":"Patients","index":2,"n_rows":54,"n_cols":8,"rows_kept":54,"cut":false,"hidden":false,"merged":[]}
["Adex Yudiswan",null,null,"Jakarta","Indonesia","M","1974-12-03","SM"]
["Agus Andriyanto",null,null,"Jakarta","Indonesia","M","1967-02-16","SM"]
["Armand Wahyudi Hartono",null,null,"Jakarta","Indonesia","M","1975-05-20","SM"]
["Budi Satrio",null,null,"Jakarta","Indonesia","M","1976-05-31","SBL"]
["Chan Choi Moi",null,null,"Jakarta","Indonesia","F","1972-04-28","SM"]
["Deddy Prasetyo",null,null,"Jakarta","Indonesia","M","1968-07-26","SM"]
["Dian Suri Iriani",null,null,"Jakarta","Indonesia","F","1979-08-02","SBL"]
["Dobias Iskandar",null,null,"Jakarta","Indonesia","M","1965-11-16","SM"]
["Eileen Patricia Hartono",null,null,"Jakarta","Indonesia","F","1973-05-01","SBL"]
["Erminda Melayeni",null,null,"Jakarta","Indonesia","F","1975-10-25","SM"]
["Escy Soeleiman",null,null,"Jakarta","Indonesia","F","1965-12-09","SBL"]
["Evy Celiyanti",null,null,"Jakarta","Indonesia","F","1972-03-07","SM"]
["Herman Herry Adranacus",null,null,"Jakarta","Indonesia","M","1962-11-26","SM"]
["Isandi Harahap",null,null,"Jakarta","Indonesia","M","1958-12-10","SBL"]
["Karyoto",null,null,"Jakarta","Indonesia","M","1968-10-27","SBL"]
["Lina Iskandar",null,null,"Jakarta","Indonesia","F","1970-06-25","SBL"]
["Martha Dwi Maryani",null,null,"Jakarta","Indonesia","F","1969-05-21","SM"]
["Muhamad Mardiono",null,null,"Jakarta","Indonesia","M","1957-07-11","SM"]
["Muljadi Tjahjono",null,null,"Jakarta","Indonesia","M","1965-07-22","SM"]
["Nyoman Adhi Suryadnyana",null,null,"Jakarta","Indonesia","M","1974-10-15","SBL"]
["Romyus Permana",null,null,"Jakarta","Indonesia","M","1978-10-20","SBL"]
["Salim Lan Jaya Liem",null,null,"Jakarta","Indonesia","M","1971-06-01","SM"]
["Samuel Bob",null,null,"Jakarta","Indonesia","M","1974-01-04","SM"]
["Samuel Rusli",null,null,"Jakarta","Indonesia","M","1968-04-01","SM"]
["Shanti Tan",null,null,"Jakarta","Indonesia","F","1978-09-10","SBL"]
["Shu Shu",null,null,"Jakarta","Indonesia","F",null,"SBL"]
["Sri Wahyuswinta",null,null,"Jakarta","Indonesia","F","1969-04-04","SM"]
["Tan Kim Siong",null,null,"Jakarta","Indonesia","M","1970-11-09","SM"]
["Tan Siew Chang",null,null,"Jakarta","Indonesia","F","1967-01-13","SM"]
["Titi Salim",null,null,"Jakarta","Indonesia","M","1971-06-01","SBL"]
["Wahyu Widada",null,null,"Jakarta","Indonesia","M","1969-09-11","SM"]
["Wisnu Hermawan",null,null,"Jakarta","Indonesia","M","1972-02-16","SM"]
["Yenni Rista S",null,null,"Jakarta","Indonesia","F","1958-07-18","SBL"]
["Yenny Wijaya",null,null,"Jakarta","Indonesia","F","1973-03-16","SM"]
["Yuldi Yusman",null,null,"Jakarta","Indonesia","M","1975-07-29","SM"]
["Yulia Gunawan",null,null,"Jakarta","Indonesia","F","1983-01-06","SM"]
["Ita Yuliati",null,null,"Jakarta","Indonesia","F","1960-07-30","SBL"]
["Doni Irawan Soenarso",null,null,"Jakarta","Indonesia","M","1960-09-13","SBL"]
["Ken Anjani",null,null,"Jakarta","Indonesia","F","1989-09-11","SBL"]
["Vino Romano",null,null,"Jakarta","Indonesia","M","1988-11-11","SBL"]
["Mouna F. Said",null,null,"Jakarta","Indonesia","F","1975-09-25","SBL"]
["Tschun Tschun",null,null,"Jakarta","Indonesia",null,null,"SBL"]
["Cun",null,null,"Jakarta","Indonesia",null,null,"SBL"]
["Samuel",null,null,"Jakarta","Indonesia",null,null,"SBL"]
["Gadiza",null,null,"Jakarta","Indonesia",null,null,"SBL"]
["Adit",null,null,"Jakarta","Indonesia",null,null,"SBL"]
["HH",null,null,"Jakarta","Indonesia",null,null,"SBL"]
["Retina",null,null,"Jakarta","Indonesia",null,null,"SBL"]
["Theresia",null,null,"Jakarta","Indonesia",null,null,"SBL"]
["Yuldi",null,null,"Jakarta","Indonesia",null,null,"SBL"]
["Otty Fauzi",null,null,"Jakarta","Indonesia",null,null,"SBL"]
["Intan Fauzi",null,null,"Jakarta","Indonesia",null,null,"SBL"]
["Esther Fauzi",null,null,"Jakarta","Indonesia",null,null,"SBL"]
["Henny",null,null,"Jakarta","Indonesia","F",null,"SBL"]

{"sheet":"Ken Anjani","index":3,"n_rows":40,"n_cols":4,"rows_kept":40,"cut":false,"hidden":false,"merged":[]}
[]
[]
["Invoice: 55H-92401002"]
["                  15.02.2024"]
[]
[]
[]
[]
["Mrs. Ken Anjani"]
["Jakarta"]
["Indonesia"]
[]
[]
["Description","Qty","Price","Amount"]
["Patient: Ken Anjani, F, 11.09.1989"]
[]
["Gut Microbiome Therapy",4,{"$f":"IFERROR(VLOOKUP(A17,'Services-Produits'!A1:B116,2,FALSE),\"\")","v":7199.75},{"$f":"IFERROR(B17*C17,\"\")","v":28799}]
[null,null,{"$f":"IFERROR(VLOOKUP(A18,'Services-Produits'!A2:B117,2,FALSE),\"\")","v":""},{"$f":"IFERROR(B18*C18,\"\")","v":""}]
["Patient: Vino Romano, M, 11.11.1988",null,{"$f":"IFERROR(VLOOKUP(A19,'Services-Produits'!A3:B118,2,FALSE),\"\")","v":""},""]
["Gut Microbiome Therapy",4,{"$f":"IFERROR(VLOOKUP(A20,'Services-Produits'!A4:B119,2,FALSE),\"\")","v":7199.75},28799]
[null,null,{"$f":"IFERROR(VLOOKUP(A21,'Services-Produits'!A4:B120,2,FALSE),\"\")","v":""},""]
["Infusion & Injections:"]
["Hypericin",1,{"$f":"IFERROR(VLOOKUP(A23,'Services-Produits'!A6:B122,2,FALSE),\"\")","v":198.7},198.7]
["Protokoll Lösung",1,{"$f":"IFERROR(VLOOKUP(A24,'Services-Produits'!A7:B123,2,FALSE),\"\")","v":147.19999999999999},147.19999999999999]
["Artesunat",2,67.2,134.4]
["Cholin Inject",20,{"$f":"IFERROR(VLOOKUP(A26,'Services-Produits'!A9:B125,2,FALSE),\"\")","v":43},860]
["Vit B12",2,{"$f":"IFERROR(VLOOKUP(A27,'Services-Produits'!A10:B126,2,FALSE),\"\")","v":""},""]
["RNA Kidney",8,{"$f":"IFERROR(VLOOKUP(A28,'Services-Produits'!A11:B127,2,FALSE),\"\")","v":438.15},3505.2]
["RNA Liver",8,{"$f":"IFERROR(VLOOKUP(A29,'Services-Produits'!A12:B128,2,FALSE),\"\")","v":629.45000000000005},5035.6000000000004]
[null,null,{"$f":"IFERROR(VLOOKUP(A30,'Services-Produits'!A13:B129,2,FALSE),\"\")","v":""},""]
["Supplement & Medication:"]
["Bactoflor Kinder",1,35.74,35.74]
["Laetia",2,{"$f":"IFERROR(VLOOKUP(A33,'Services-Produits'!A16:B132,2,FALSE),\"\")","v":""},""]
[null,null,{"$f":"IFERROR(VLOOKUP(A34,'Services-Produits'!A17:B133,2,FALSE),\"\")","v":""},""]
["Subtotal in CHF",null,null,{"$f":"SUM(D17:D33)","v":67514.84}]
["Payment received by cash 07.02.2024",null,null,-8423.93]
[null,null,{"$f":"IFERROR(VLOOKUP(A37,'Services-Produits'!A20:B136,2,FALSE),\"\")","v":""}]
["Total in CHF",null,null,{"$f":"SUM(D35+D36)","v":59090.909999999996}]
[]
["Thank you very much for your trust!"]

{"sheet":"Henny","index":4,"n_rows":40,"n_cols":4,"rows_kept":40,"cut":false,"hidden":false,"merged":[]}
[]
[]
["Invoice: 55H-92401011"]
["                  14.02.2024"]
[]
[]
[]
[]
["Mrs. Henny"]
["jakarta"]
["Indonesie"]
[]
[]
["Description","Qty","Price","Amount"]
["Patient: Henny"]
[]
["curcumin 75 mg",3,{"$f":"IFERROR(VLOOKUP(A17,'Services-Produits'!A1:B116,2,FALSE),\"\")","v":116.22},{"$f":"IFERROR(B17*C17,\"\")","v":348.65999999999997}]
["Vit C",4,{"$f":"IFERROR(VLOOKUP(A18,'Services-Produits'!A2:B117,2,FALSE),\"\")","v":27.99},{"$f":"IFERROR(B18*C18,\"\")","v":111.96}]
["Microbiome",4,{"$f":"IFERROR(VLOOKUP(A19,'Services-Produits'!A3:B118,2,FALSE),\"\")","v":74.95},299.8]
["Biomo Lipon 600",2,{"$f":"IFERROR(VLOOKUP(A20,'Services-Produits'!A4:B119,2,FALSE),\"\")","v":35.700000000000003},71.400000000000006]
["Artesunat",4,{"$f":"IFERROR(VLOOKUP(A21,'Services-Produits'!A4:B120,2,FALSE),\"\")","v":67.2},268.8]
["Protokoll Lösung",1,{"$f":"IFERROR(VLOOKUP(A22,'Services-Produits'!A5:B121,2,FALSE),\"\")","v":147.19999999999999},147.19999999999999]
[null,null,{"$f":"IFERROR(VLOOKUP(A23,'Services-Produits'!A6:B122,2,FALSE),\"\")","v":""},""]
[null,null,{"$f":"IFERROR(VLOOKUP(A24,'Services-Produits'!A7:B123,2,FALSE),\"\")","v":""},""]
[null,null,{"$f":"IFERROR(VLOOKUP(A25,'Services-Produits'!A8:B124,2,FALSE),\"\")","v":""},""]
[null,null,{"$f":"IFERROR(VLOOKUP(A26,'Services-Produits'!A9:B125,2,FALSE),\"\")","v":""},""]
[null,null,{"$f":"IFERROR(VLOOKUP(A27,'Services-Produits'!A10:B126,2,FALSE),\"\")","v":""},""]
[null,null,{"$f":"IFERROR(VLOOKUP(A28,'Services-Produits'!A11:B127,2,FALSE),\"\")","v":""},""]
[null,null,{"$f":"IFERROR(VLOOKUP(A29,'Services-Produits'!A12:B128,2,FALSE),\"\")","v":""},""]
[null,null,{"$f":"IFERROR(VLOOKUP(A30,'Services-Produits'!A13:B129,2,FALSE),\"\")","v":""},""]
[null,null,{"$f":"IFERROR(VLOOKUP(A31,'Services-Produits'!A14:B130,2,FALSE),\"\")","v":""},""]
[null,null,{"$f":"IFERROR(VLOOKUP(A32,'Services-Produits'!A15:B131,2,FALSE),\"\")","v":""},""]
[null,null,{"$f":"IFERROR(VLOOKUP(A33,'Services-Produits'!A16:B132,2,FALSE),\"\")","v":""},""]
[null,null,{"$f":"IFERROR(VLOOKUP(A34,'Services-Produits'!A17:B133,2,FALSE),\"\")","v":""},""]
[null,null,{"$f":"IFERROR(VLOOKUP(A35,'Services-Produits'!A18:B134,2,FALSE),\"\")","v":""},""]
[null,null,{"$f":"IFERROR(VLOOKUP(A36,'Services-Produits'!A19:B135,2,FALSE),\"\")","v":""},""]
[null,null,{"$f":"IFERROR(VLOOKUP(A37,'Services-Produits'!A20:B136,2,FALSE),\"\")","v":""}]
["Total in CHF",null,null,{"$f":"SUM(D17:D37)","v":1247.82}]
[]
["Thank you very much for your trust!"]

{"sheet":"Test 2 pages","index":5,"n_rows":39,"n_cols":8,"rows_kept":39,"cut":false,"hidden":false,"merged":[]}
[]
[]
["Invoice: 55H-0231115"]
["                  23.12.2023"]
[null,null,"Treatment by",null,"Description","Qty","Price","Amount"]
[null,null,"Dr. Roger Gmür",null,"Patient: Deddy Prasetyo, M, 26.07.1968"]
[null,null,"Zürich"]
[null,null,null,null,"Gut Microbiome Therapy",4,{"$f":"IFERROR(VLOOKUP(E8,'[1]Services-Produits'!#REF!,2,FALSE),\"\")","v":""},{"$f":"IFERROR(F8*G8,\"\")","v":""}]
["Mr. Deddy Prasetyo",null,null,null,"curcumin 75 mg",1,{"$f":"IFERROR(VLOOKUP(E9,'[1]Services-Produits'!#REF!,2,FALSE),\"\")","v":""},{"$f":"IFERROR(F9*G9,\"\")","v":""}]
["Jakarta",null,null,null,"Bosvene Akba",1,{"$f":"IFERROR(VLOOKUP(E10,'[1]Services-Produits'!#REF!,2,FALSE),\"\")","v":""},""]
["Indonesia",null,null,null,"Gynophilus",1,{"$f":"IFERROR(VLOOKUP(E11,'[1]Services-Produits'!#REF!,2,FALSE),\"\")","v":""},""]
[null,null,null,null,null,null,{"$f":"IFERROR(VLOOKUP(E12,'[1]Services-Produits'!#REF!,2,FALSE),\"\")","v":""},""]
[null,null,null,null,null,null,{"$f":"IFERROR(VLOOKUP(E13,'[1]Services-Produits'!#REF!,2,FALSE),\"\")","v":""},""]
["Description","Qty","Price","Amount",null,null,{"$f":"IFERROR(VLOOKUP(E14,'[1]Services-Produits'!#REF!,2,FALSE),\"\")","v":""},""]
["Patient: Deddy Prasetyo, M, 26.07.1968",null,null,null,null,null,{"$f":"IFERROR(VLOOKUP(E15,'[1]Services-Produits'!#REF!,2,FALSE),\"\")","v":""},""]
[null,null,null,null,null,null,{"$f":"IFERROR(VLOOKUP(E16,'[1]Services-Produits'!#REF!,2,FALSE),\"\")","v":""},""]
["Gut Microbiome Therapy",4,{"$f":"IFERROR(VLOOKUP(A17,'[1]Services-Produits'!A1:B118,2,FALSE),\"\")","v":6912.5},{"$f":"IFERROR(B17*C17,\"\")","v":27650},null,null,{"$f":"IFERROR(VLOOKUP(E17,'[1]Services-Produits'!E1:F118,2,FALSE),\"\")","v":""},""]
["curcumin 75 mg",1,{"$f":"IFERROR(VLOOKUP(A18,'[1]Services-Produits'!A2:B119,2,FALSE),\"\")","v":116.22},{"$f":"IFERROR(B18*C18,\"\")","v":116.22},null,null,{"$f":"IFERROR(VLOOKUP(E18,'[1]Services-Produits'!E2:F119,2,FALSE),\"\")","v":""},""]
["Bosvene Akba",1,{"$f":"IFERROR(VLOOKUP(A19,'[1]Services-Produits'!A3:B120,2,FALSE),\"\")","v":215.11},215.11,null,null,{"$f":"IFERROR(VLOOKUP(E19,'[1]Services-Produits'!E3:F120,2,FALSE),\"\")","v":""},""]
["Gynophilus",1,{"$f":"IFERROR(VLOOKUP(A20,'[1]Services-Produits'!A4:B121,2,FALSE),\"\")","v":19.8},19.8,null,null,{"$f":"IFERROR(VLOOKUP(E20,'[1]Services-Produits'!E4:F121,2,FALSE),\"\")","v":""},""]
["Microbiome",8,{"$f":"IFERROR(VLOOKUP(A21,'[1]Services-Produits'!A5:B122,2,FALSE),\"\")","v":74.95},599.6,null,null,{"$f":"IFERROR(VLOOKUP(E21,'[1]Services-Produits'!E5:F122,2,FALSE),\"\")","v":""},""]
["Vit, B Komplex",1,{"$f":"IFERROR(VLOOKUP(A22,'[1]Services-Produits'!A6:B123,2,FALSE),\"\")","v":46.8},46.8,null,null,{"$f":"IFERROR(VLOOKUP(E22,'[1]Services-Produits'!#REF!,2,FALSE),\"\")","v":""},""]
["Fermanose",2,{"$f":"IFERROR(VLOOKUP(A23,'[1]Services-Produits'!A7:B124,2,FALSE),\"\")","v":46.2},92.4,null,null,{"$f":"IFERROR(VLOOKUP(E23,'[1]Services-Produits'!#REF!,2,FALSE),\"\")","v":""},""]
["Fermanose",6,{"$f":"IFERROR(VLOOKUP(A24,'[1]Services-Produits'!A8:B125,2,FALSE),\"\")","v":46.2},277.20000000000005,null,null,{"$f":"IFERROR(VLOOKUP(E24,'[1]Services-Produits'!E1:F118,2,FALSE),\"\")","v":""},""]
["Oliphenolia",1,{"$f":"IFERROR(VLOOKUP(A25,'[1]Services-Produits'!A9:B126,2,FALSE),\"\")","v":183.51},183.51,null,null,{"$f":"IFERROR(VLOOKUP(E25,'[1]Services-Produits'!E2:F119,2,FALSE),\"\")","v":""},""]
[null,null,{"$f":"IFERROR(VLOOKUP(A26,'[1]Services-Produits'!A10:B127,2,FALSE),\"\")","v":""},"",null,null,{"$f":"IFERROR(VLOOKUP(E26,'[1]Services-Produits'!E3:F120,2,FALSE),\"\")","v":""},""]
[null,null,{"$f":"IFERROR(VLOOKUP(A27,'[1]Services-Produits'!A11:B128,2,FALSE),\"\")","v":""},"",null,null,{"$f":"IFERROR(VLOOKUP(E27,'[1]Services-Produits'!E4:F121,2,FALSE),\"\")","v":""},""]
[null,6,{"$f":"IFERROR(VLOOKUP(A28,'[1]Services-Produits'!A12:B129,2,FALSE),\"\")","v":""},"",null,null,{"$f":"IFERROR(VLOOKUP(E28,'[1]Services-Produits'!E5:F122,2,FALSE),\"\")","v":""}]
[null,1,{"$f":"IFERROR(VLOOKUP(A29,'[1]Services-Produits'!A13:B130,2,FALSE),\"\")","v":""},"","Total in CHF",null,null,{"$f":"SUM(H8:H28)","v":0}]
[null,1,{"$f":"IFERROR(VLOOKUP(A30,'[1]Services-Produits'!A14:B131,2,FALSE),\"\")","v":""},""]
[null,null,{"$f":"IFERROR(VLOOKUP(A31,'[1]Services-Produits'!A8:B125,2,FALSE),\"\")","v":""},"","Thank you very much for your trust!"]
[null,1,{"$f":"IFERROR(VLOOKUP(A32,'[1]Services-Produits'!A9:B126,2,FALSE),\"\")","v":""},""]
[null,8,{"$f":"IFERROR(VLOOKUP(A33,'[1]Services-Produits'!A10:B127,2,FALSE),\"\")","v":""},""]
[null,1,{"$f":"IFERROR(VLOOKUP(A34,'[1]Services-Produits'!A11:B128,2,FALSE),\"\")","v":""},""]
[null,2,{"$f":"IFERROR(VLOOKUP(A35,'[1]Services-Produits'!A12:B129,2,FALSE),\"\")","v":""},""]
[null,9,{"$f":"IFERROR(VLOOKUP(A36,'[1]Services-Produits'!A13:B130,2,FALSE),\"\")","v":""},""]
[]
[null,null,{"$f":"IFERROR(VLOOKUP(A38,'[1]Services-Produits'!A14:B131,2,FALSE),\"\")","v":""}]
["Total in CHF",null,null,{"$f":"SUM(D17:D38)","v":29200.639999999999}]